fUSD/lending_fUSD_20251126
["ID","MTS","AMOUNT","RATE_DAILY","PERIOD"]
[394948065,1764187839023,-96450.83339256,0.00016797,2]
[394948066,1764187839035,-866.41256,0.00016797,2]
[394948067,1764187839046,-372.81616378,0.00016797,2]
[394948068,1764187839058,-616.68783483,0.00016797,2]
[394948069,1764187839069,-10000.0,0.00016797,2]
[394948078,1764187841020,-328.59908714,0.000159,2]
[394948079,1764187841029,-1960.01615463,0.00016797,2]
[394948080,1764187841073,-633442.99917112,0.00016797,2]
[394948081,1764187841082,-267.0,0.00016821,2]
[394948082,1764187841091,-1061.43787292,0.00016831,2]
[394948083,1764187841100,-419.0050136,0.00016873,2]
[394948084,1764187841109,-567.06270597,0.00016873,2]
[394948085,1764187841118,-500.0,0.00016873,2]
[394948086,1764187841128,-500.0,0.00016873,2]
[394948087,1764187841137,-500.96249559,0.00016873,2]
[394948088,1764187841146,-565.64448651,0.00016873,2]
[394948089,1764187841155,-500.0,0.00016873,2]
[394948090,1764187841164,-500.0,0.00016873,2]
[394948091,1764187841173,-500.0,0.00016873,2]
[394948092,1764187841182,-151.0,0.00016888,2]
[394948093,1764187841191,-151.0,0.00016888,2]
[394948094,1764187841201,-151.0,0.00016888,2]
[394948095,1764187841210,-151.0,0.00016888,2]
[394948096,1764187841220,-151.0,0.00016888,2]
[394948097,1764187841228,-151.0,0.00016888,2]
[394948099,1764187841238,-151.0,0.00016888,2]
[394948100,1764187841247,-151.0,0.00016888,2]
[394948101,1764187841257,-151.0,0.00016888,2]
[394948102,1764187841266,-151.0,0.00016888,2]
[394948103,1764187841275,-151.0,0.00016888,2]
[394948104,1764187841284,-151.0,0.00016888,2]
[394948105,1764187841298,-151.0,0.00016888,2]
[394948106,1764187841307,-151.0,0.00016888,2]
[394948107,1764187841316,-151.0,0.00016888,2]
[394948108,1764187841326,-151.0,0.00016888,2]
[394948109,1764187841336,-151.0,0.00016888,2]
[394948110,1764187841344,-151.0,0.00016888,2]
[394948111,1764187841354,-151.0,0.00016888,2]
[394948112,1764187841363,-956.05,0.00016888,2]
[394948113,1764187841374,-500.0,0.00016897,2]
[394948114,1764187841383,-500.0,0.00016897,2]
[394948115,1764187841392,-500.0,0.00016897,2]
[394948117,1764187841401,-519.4667205,0.00016897,2]
[394948118,1764187841410,-500.0,0.00016897,2]
[394948119,1764187841419,-529.1,0.00016897,2]
[394948120,1764187841428,-786.491,0.00016897,2]
[394948121,1764187841437,-500.0,0.00016897,2]
[394948122,1764187841447,-500.0,0.00016897,2]
[394948123,1764187841457,-500.0,0.00016897,2]
[394948124,1764187841466,-500.0,0.00016897,2]
[394948125,1764187841475,-500.0,0.00016897,2]
[394948126,1764187841486,-500.0,0.00016897,2]
[394948127,1764187841495,-500.0,0.00016897,2]
[394948128,1764187841504,-500.0,0.00016897,2]
[394948129,1764187841513,-500.0,0.00016897,2]
[394948130,1764187841522,-500.0,0.00016897,2]
[394948131,1764187841532,-500.0,0.00016897,2]
[394948132,1764187841541,-500.0,0.00016897,2]
[394948133,1764187841550,-500.0,0.00016897,2]
[394948134,1764187841559,-1839.11,0.00016897,2]
[394948135,1764187841568,-1839.11,0.00016897,2]
[394948136,1764187841577,-1839.11,0.00016897,2]
[394948137,1764187841587,-500.0,0.00016897,2]
[394948138,1764187841596,-500.0,0.00016897,2]
[394948139,1764187841605,-500.0,0.00016897,2]
[394948140,1764187841614,-1061.43787292,0.00016964,2]
[394948141,1764187841624,-500.0,0.00016973,2]
[394948142,1764187841633,-500.0,0.00016973,2]
[394948143,1764187841642,-205.24650132,0.00016973,2]
[394948144,1764187841651,-500.0,0.00016973,2]
[394948145,1764187841660,-500.0,0.00016973,2]
[394948146,1764187841669,-500.0,0.00016973,2]
[394948147,1764187841678,-500.0,0.00016973,2]
[394948148,1764187841687,-500.0,0.00016973,2]
[394948149,1764187841695,-613.09788002,0.00016973,2]
[394948150,1764187841705,-250.0,0.00017,2]
[394948151,1764187841714,-335.0,0.00017007,2]
[394948152,1764187841723,-1061.43787292,0.00017098,2]
[394948153,1764187841732,-166.66,0.00017114,2]
[394948154,1764187841741,-201.85455642,0.00017152,2]
[394948155,1764187841750,-956.05,0.00017162,2]
[394948156,1764187841759,-1061.43787292,0.00017232,2]
[394948157,1764187841767,-420.0,0.00017276,2]
[394948158,1764187841776,-674.5426397,0.00017315,2]
[394948159,1764187841785,-500.0,0.00017321,2]
[394948160,1764187841794,-1000.0,0.00017321,2]
[394948161,1764187841803,-1000.0,0.00017321,2]
[394948162,1764187841812,-250.0,0.00017321,2]
[394948163,1764187841821,-250.0,0.00017362,2]
[394948164,1764187841830,-250.0,0.00017362,2]
[394948165,1764187841839,-1680.0,0.00017363,2]
[394948166,1764187841848,-1061.43787292,0.00017365,2]
[394948167,1764187841857,-150.0,0.00017374,2]
[394948168,1764187841866,-1000.0,0.00017421,2]
[394948169,1764187841875,-500.0,0.00017421,2]
[394948170,1764187841884,-512.76513173,0.00017421,2]
[394948171,1764187841893,-406.97735465,0.00017421,2]
[394948172,1764187841902,-1000.0,0.00017421,2]
[394948173,1764187841912,-956.05,0.00017436,2]
[394948174,1764187841921,-166.66,0.00017446,2]
[394948175,1764187841930,-22788.8063013,0.00017465,2]
[394948176,1764187841940,-2751.0,0.00017474,2]
[394948177,1764187841950,-1061.43787292,0.00017499,2]
[394948178,1764187841960,-218.8231771,0.00017541,2]
[394948179,1764187841969,-555.26791659,0.00017592,2]
[394948180,1764187841977,-535.38689541,0.00017593,2]
[394948181,1764187841987,-365.32199999,0.00017593,2]
[394948182,1764187841996,-2227.79207945,0.00017593,2]
[394948183,1764187842006,-250.67117171,0.00017593,2]
[394948184,1764187842015,-1061.43787292,0.00017633,2]
[394948185,1764187842024,-956.05,0.0001771,2]
[394948186,1764187842033,-150.0,0.00017728,2]
[394948187,1764187842042,-500.0,0.00017728,2]
[394948188,1764187842050,-150.0,0.0001773,2]
[394948189,1764187842060,-500.0,0.0001773,2]
[394948190,1764187842069,-150.0,0.0001773,2]
[394948191,1764187842078,-150.0,0.0001773,2]
[394948192,1764187842088,-150.0,0.0001773,2]
[394948193,1764187842097,-152.61238879,0.0001773,2]
[394948194,1764187842106,-150.0,0.0001773,2]
[394948195,1764187842115,-150.0,0.0001773,2]
[394948196,1764187842124,-150.0,0.0001773,2]
[394948197,1764187842133,-150.0,0.0001773,2]
[394948198,1764187842142,-150.0,0.0001773,2]
[394948199,1764187842152,-150.0,0.0001773,2]
[394948200,1764187842161,-150.0,0.0001773,2]
[394948201,1764187842170,-213.45244763,0.0001773,2]
[394948202,1764187842179,-150.0,0.0001773,2]
[394948203,1764187842188,-151.00535382,0.0001773,2]
[394948204,1764187842198,-150.0,0.0001773,2]
[394948205,1764187842208,-150.0,0.0001773,2]
[394948206,1764187842217,-155.30279414,0.0001773,2]
[394948207,1764187842227,-150.0,0.0001773,2]
[394948208,1764187842235,-200.0,0.0001773,2]
[394948209,1764187842244,-150.0,0.0001773,2]
[394948210,1764187842253,-500.0,0.0001773,2]
[394948211,1764187842262,-150.0,0.0001773,2]
[394948212,1764187842271,-1061.43787292,0.00017766,2]
[394948213,1764187842279,-384.69867,0.0001782,2]
[394948214,1764187842288,-150.0,0.00017865,2]
[394948215,1764187842298,-600.0,0.00017865,2]
[394948216,1764187842308,-194.96868907,0.00017867,2]
[394948217,1764187842317,-500.0,0.00017867,2]
[394948218,1764187842325,-150.0,0.00017867,2]
[394948219,1764187842338,-150.0,0.00017867,2]
[394948220,1764187842347,-150.0,0.00017867,2]
[394948221,1764187842356,-150.0,0.00017867,2]
[394948222,1764187842365,-150.0,0.00017867,2]
[394948223,1764187842375,-150.0,0.00017867,2]
[394948224,1764187842384,-150.0,0.00017867,2]
[394948225,1764187842393,-150.0,0.00017867,2]
[394948226,1764187842402,-150.0,0.00017867,2]
[394948227,1764187842411,-150.0,0.00017867,2]
[394948228,1764187842420,-150.0,0.00017867,2]
[394948229,1764187842429,-203.76538744,0.00017867,2]
[394948230,1764187842439,-206.21851696,0.00017867,2]
[394948231,1764187842448,-150.0,0.00017867,2]
[394948232,1764187842457,-400.0,0.00017867,2]
[394948233,1764187842466,-387.42218199,0.00017868,2]
[394948234,1764187842476,-449.67502759,0.00017868,2]
[394948235,1764187842485,-179.78326477,0.00017898,2]
[394948236,1764187842495,-167.37962358,0.00017898,2]
[394948237,1764187842505,-674.5426397,0.00017898,2]
[394948238,1764187842515,-10000.0,0.000179,2]
[394948239,1764187842524,-179.78326476,0.000179,2]
[394948240,1764187842534,-183.97371649,0.000179,2]
[394948241,1764187842543,-535.85456159,0.000179,2]
[394948242,1764187842552,-1061.43787292,0.000179,2]
[394948243,1764187842562,-1500.0,0.00017968,2]
[394948244,1764187842571,-1500.0,0.00017968,2]
[394948245,1764187842580,-150.0,0.00017973,2]
[394948246,1764187842590,-500.0,0.00017973,2]
[394948247,1764187842599,-503.32747912,0.00017973,2]
[394948248,1764187842608,-500.0,0.00017973,2]
[394948249,1764187842618,-501.07543735,0.00017973,2]
[394948250,1764187842628,-500.0,0.00017973,2]
[394948251,1764187842638,-500.0,0.00017973,2]
[394948252,1764187842647,-500.0,0.00017973,2]
[394948253,1764187842656,-502.92078827,0.00017973,2]
[394948254,1764187842667,-500.0,0.00017973,2]
[394948255,1764187842676,-500.0,0.00017973,2]
[394948256,1764187842686,-500.0,0.00017973,2]
[394948257,1764187842695,-500.0,0.00017973,2]
[394948258,1764187842707,-500.0,0.00017973,2]
[394948259,1764187842716,-500.0,0.00017973,2]
[394948260,1764187842726,-500.0,0.00017973,2]
[394948261,1764187842736,-500.0,0.00017973,2]
[394948262,1764187842746,-500.0,0.00017973,2]
[394948263,1764187842755,-500.0,0.00017973,2]
[394948264,1764187842765,-161.55616057,0.00017973,2]
[394948265,1764187842775,-298.00508969,0.00017973,2]
[394948266,1764187842784,-331.9088582,0.00017973,2]
[394948267,1764187842794,-335.09506367,0.00017973,2]
[394948268,1764187842804,-579.24594614,0.00017973,2]
[394948269,1764187842814,-500.89595988,0.00017973,2]
[394948270,1764187842824,-500.0,0.00017973,2]
[394948271,1764187842833,-567.54247818,0.00017973,2]
[394948272,1764187842843,-366.28624728,0.00017973,2]
[394948273,1764187842852,-500.0,0.00017973,2]
[394948274,1764187842861,-500.0,0.00017973,2]
[394948275,1764187842871,-501.10677799,0.00017973,2]
[394948276,1764187842880,-500.0,0.00017973,2]
[394948277,1764187842890,-500.0,0.00017973,2]
[394948278,1764187842899,-500.0,0.00017973,2]
[394948279,1764187842908,-500.0,0.00017973,2]
[394948280,1764187842917,-500.0,0.00017973,2]
[394948281,1764187842927,-500.0,0.00017973,2]
[394948282,1764187842936,-500.0,0.00017973,2]
[394948283,1764187842945,-500.0,0.00017973,2]
[394948284,1764187842959,-500.0,0.00017973,2]
[394948285,1764187842968,-500.0,0.00017973,2]
[394948286,1764187842977,-500.0,0.00017973,2]
[394948287,1764187842986,-500.0,0.00017973,2]
[394948288,1764187842995,-500.0,0.00017973,2]
[394948289,1764187843005,-547.11985168,0.00017973,2]
[394948290,1764187843014,-956.05,0.00017984,2]
[394948291,1764187843024,-167.0947258,0.00017988,2]
[394948292,1764187843034,-167.0947258,0.0001799,2]
[394948293,1764187843043,-167.0947258,0.0001799,2]
[394948294,1764187843052,-151.0,0.00017995,2]
[394948295,1764187843062,-151.0,0.00017995,2]
[394948296,1764187843071,-151.0,0.00017995,2]
[394948297,1764187843080,-1304.90558406,0.00017997,5]
[394948298,1764187843089,-500.0,0.00017997,2]
[394948299,1764187843098,-500.0,0.00017997,2]
[394948300,1764187843108,-500.0,0.00017997,2]
[394948301,1764187843117,-1839.11,0.00017997,2]
[394948302,1764187843127,-1839.11,0.00017997,2]
[394948303,1764187843136,-1839.11,0.00017997,2]
[394948304,1764187843146,-1839.11,0.00017997,2]
[394948305,1764187843155,-1839.11,0.00017997,2]
[394948306,1764187843164,-500.0,0.00017997,2]
[394948307,1764187843173,-738.0,0.00017998,2]
[394948308,1764187843182,-931082.8921417,0.00017998,2]
[394948309,1764187843192,-3319.3818247,0.00017998,2]
[394948310,1764187843203,-294063.4790227,0.00017998,2]
[394948311,1764187843212,-3194.9032364,0.00017998,2]
[394948312,1764187843221,-300.0,0.00017999,2]
[394948313,1764187843230,-300.0,0.00017999,2]
[394948315,1764187843239,-300.0,0.00017999,2]
[394948316,1764187843250,-300.0,0.00017999,2]
[394948317,1764187843259,-1839.11,0.00017999,2]
[394948318,1764187843268,-1839.11,0.00017999,2]
[394948319,1764187843278,-1839.11,0.00017999,2]
[394948320,1764187843287,-1839.11,0.00017999,2]
[394948321,1764187843297,-1839.11,0.00017999,2]
[394948322,1764187843308,-1839.11,0.00017999,2]
[394948323,1764187843318,-1839.11,0.00017999,2]
[394948324,1764187843327,-1839.11,0.00017999,2]
[394948325,1764187843338,-1839.11,0.00017999,2]
[394948326,1764187843347,-1839.11,0.00017999,2]
[394948327,1764187843356,-1839.11,0.00017999,2]
[394948328,1764187843366,-1839.11,0.00017999,2]
[394948329,1764187843378,-1839.11,0.00017999,2]
[394948330,1764187843387,-1839.11,0.00017999,2]
[394948331,1764187843396,-1839.11,0.00017999,2]
[394948332,1764187843406,-1839.22108833,0.00017999,2]
[394948333,1764187843415,-1000.0,0.00018,2]
[394948334,1764187843424,-741.60800904,0.00018,2]
[394948335,1764187843433,-2910820.99589814,0.00018,2]
[394948338,1764187844759,-500.0,0.00017997,2]
[394948339,1764187844769,-440.372799,0.00017997,2]
[394948340,1764187844781,-59.627201,0.00017997,2]
[394948341,1764187844790,-272.36946395,0.00018,2]
[394948342,1764187844867,-10584.98538417,0.00018,2]
[394948343,1764187844922,-301.26034075,0.00018,2]
[394948348,1764187846362,-328.59908711,0.00016003,2]
[394948349,1764187846372,-347256.49559885,0.00018,2]
[394948350,1764187846384,-420.0,0.00018,2]
[394948351,1764187846394,-2845.69356486,0.00018,2]
[394948352,1764187846405,-11186.86175,0.00018,2]
[394948353,1764187846438,-700594.1440339,0.00018,2]
[394948354,1764187846584,-502.45815262,0.00018,2]
[394948355,1764187846598,-4161.59892156,0.00018,2]
[394948356,1764187846610,-3924.21058312,0.00018,2]
[394948357,1764187846638,-655.0,0.00018,2]
[394948358,1764187846650,-282.635,0.00018,2]
[394948361,1764188299983,154.47,0.00013699,2]
[394948362,1764188320625,162.12,8.378e-05,2]
[394948370,1764188692104,576.0,0.00024984,120]
[394948387,1764189031573,-250.0,0.00015599,2]
[394948388,1764189031583,-245.286784,0.00015917,2]
[394948389,1764189031594,-4.713216,0.00015917,2]
[394948390,1764189031603,-152.19329144,0.00015987,2]
[394948391,1764189031613,-328.59908711,0.000161,2]
[394948392,1764189031622,-1200.0,0.00016199,2]
[394948393,1764189031631,-300.0,0.00016199,2]
[394948394,1764189031640,-300.0,0.00016199,2]
[394948395,1764189031649,-550.0,0.00016199,2]
[394948396,1764189031658,-150.0,0.000162,2]
[394948397,1764189031673,-150.0,0.000162,2]
[394948398,1764189031682,-162.19986855,0.000162,2]
[394948399,1764189031692,-150.0,0.000162,2]
[394948400,1764189031702,-150.0,0.000162,2]
[394948401,1764189031713,-150.0,0.000162,2]
[394948402,1764189031722,-245.21708377,0.000162,2]
[394948403,1764189031731,-150.0,0.000162,2]
[394948404,1764189031741,-150.91340114,0.000162,2]
[394948405,1764189031753,-150.41147425,0.000162,2]
[394948406,1764189031762,-14.68177136,0.000162,2]
[394948407,1764189031774,-135.31822864,0.000162,2]
[394948408,1764189031783,-3622.20901238,0.000162,5]
[394948409,1764189031794,-494.91920915,0.000162,5]
[394948410,1764189031805,-2038.14590756,0.000162,5]
[394948411,1764189031817,-1126.35397208,0.000162,5]
[394948412,1764189031828,-27172.11189883,0.000162,5]
[394948413,1764189031838,-150.0,0.00016487,2]
[394948415,1764189031847,-328.59908711,0.000165,2]
[394948417,1764189031856,-250.0,0.000166,2]
[394948419,1764189031865,-576.0,0.00016656,2]
[394948421,1764189031875,-999.0,0.00016696,3]
[394948423,1764189031884,-357.2363744,0.000169,2]
[394948425,1764189031893,-362.81315564,0.000169,2]
[394948426,1764189031902,-645.28,0.00016911,2]
[394948427,1764189031912,-2000.0,0.00016911,2]
[394948428,1764189031921,-3353.45,0.00016959,14]
[394948429,1764189031930,-500.0,0.00016973,2]
[394948430,1764189031941,-500.0,0.00016973,2]
[394948431,1764189031950,-500.0,0.00016973,2]
[394948432,1764189031959,-500.0,0.00016973,2]
[394948433,1764189031968,-500.0,0.00016973,2]
[394948434,1764189031977,-500.0,0.00016973,2]
[394948435,1764189031986,-500.0,0.00016973,2]
[394948436,1764189031995,-500.0,0.00016973,2]
[394948437,1764189032004,-314.2619767,0.00016973,2]
[394948438,1764189032013,-500.0,0.00016999,2]
[394948439,1764189032022,-174.08082941,0.00016999,2]
[394948440,1764189032031,-411.3381336,0.00016999,2]
[394948441,1764189032040,-160.98778428,0.00016999,2]
[394948442,1764189032049,-500.0,0.00016999,2]
[394948443,1764189032058,-302.77298444,0.00016999,2]
[394948445,1764189032068,-500.0,0.00016999,2]
[394948447,1764189032078,-500.0,0.00016999,2]
[394948448,1764189032087,-500.0,0.00016999,2]
[394948450,1764189032096,-161.98091605,0.00016999,2]
[394948452,1764189032105,-500.0,0.00016999,2]
[394948454,1764189032114,-500.0,0.00016999,2]
[394948456,1764189032123,-500.0,0.00016999,2]
[394948458,1764189032132,-500.0,0.00016999,2]
[394948460,1764189032141,-500.0,0.00016999,2]
[394948462,1764189032150,-500.0,0.00016999,2]
[394948464,1764189032159,-500.0,0.00016999,2]
[394948466,1764189032168,-500.0,0.00016999,2]
[394948468,1764189032177,-500.0,0.00016999,2]
[394948470,1764189032186,-500.0,0.00016999,2]
[394948472,1764189032196,-500.0,0.00016999,2]
[394948496,1764189032413,-500.0,0.00016999,2]
[394948498,1764189032425,-500.0,0.00016999,2]
[394948500,1764189032434,-500.0,0.00016999,2]
[394948502,1764189032444,-500.0,0.00016999,2]
[394948504,1764189032454,-500.0,0.00016999,2]
[394948506,1764189032463,-500.0,0.00016999,2]
[394948508,1764189032473,-500.0,0.00016999,2]
[394948510,1764189032488,-500.0,0.00016999,2]
[394948512,1764189032499,-500.0,0.00016999,2]
[394948514,1764189032508,-500.0,0.00016999,2]
[394948516,1764189032517,-500.0,0.00016999,2]
[394948518,1764189032526,-500.0,0.00016999,2]
[394948520,1764189032535,-500.0,0.00016999,2]
[394948522,1764189032544,-500.0,0.00016999,2]
[394948525,1764189032554,-500.0,0.00016999,2]
[394948527,1764189032567,-500.0,0.00016999,2]
[394948529,1764189032579,-500.0,0.00016999,2]
[394948531,1764189032588,-500.0,0.00016999,2]
[394948532,1764189032598,-374.51925471,0.00016999,2]
[394948535,1764189032608,-500.0,0.00016999,2]
[394948537,1764189032618,-500.0,0.00016999,2]
[394948538,1764189032628,-500.0,0.00016999,2]
[394948541,1764189032638,-500.0,0.00016999,2]
[394948542,1764189032649,-500.0,0.00016999,2]
[394948544,1764189032658,-500.0,0.00016999,2]
[394948546,1764189032669,-500.0,0.00016999,2]
[394948549,1764189032682,-500.0,0.00016999,2]
[394948551,1764189032692,-500.0,0.00016999,2]
[394948553,1764189032702,-500.0,0.00016999,2]
[394948555,1764189032711,-500.0,0.00016999,2]
[394948557,1764189032722,-500.0,0.00016999,2]
[394948559,1764189032732,-500.0,0.00016999,2]
[394948561,1764189032742,-500.0,0.00016999,2]
[394948563,1764189032752,-500.0,0.00016999,2]
[394948565,1764189032762,-500.0,0.00016999,2]
[394948567,1764189032776,-500.0,0.00016999,2]
[394948569,1764189032786,-500.0,0.00016999,2]
[394948571,1764189032796,-500.0,0.00016999,2]
[394948573,1764189032805,-500.0,0.00016999,2]
[394948575,1764189032815,-500.0,0.00016999,2]
[394948577,1764189032824,-500.0,0.00016999,2]
[394948579,1764189032833,-500.0,0.00016999,2]
[394948580,1764189032843,-500.0,0.00016999,2]
[394948582,1764189032852,-500.0,0.00016999,2]
[394948584,1764189032861,-500.0,0.00016999,2]
[394948586,1764189032871,-500.0,0.00016999,2]
[394948588,1764189032881,-500.0,0.00016999,2]
[394948590,1764189032891,-500.0,0.00016999,2]
[394948593,1764189032900,-187.45192548,0.00016999,2]
[394948594,1764189032910,-500.0,0.00016999,2]
[394948597,1764189032919,-500.0,0.00016999,2]
[394948598,1764189032929,-500.0,0.00016999,2]
[394948600,1764189032938,-500.0,0.00016999,2]
[394948602,1764189032947,-500.0,0.00016999,2]
[394948604,1764189032957,-500.0,0.00016999,2]
[394948606,1764189032966,-500.0,0.00016999,2]
[394948608,1764189032976,-500.0,0.00016999,2]
[394948610,1764189032986,-500.0,0.00016999,2]
[394948612,1764189032996,-500.0,0.00016999,2]
[394948614,1764189033005,-500.0,0.00016999,2]
[394948616,1764189033015,-500.0,0.00016999,2]
[394948618,1764189033024,-500.0,0.00016999,2]
[394948620,1764189033033,-500.0,0.00016999,2]
[394948622,1764189033043,-500.0,0.00016999,2]
[394948624,1764189033052,-500.0,0.00016999,2]
[394948626,1764189033062,-500.0,0.00016999,2]
[394948627,1764189033071,-500.0,0.00016999,2]
[394948628,1764189033080,-500.0,0.00016999,2]
[394948629,1764189033091,-500.0,0.00016999,2]
[394948630,1764189033101,-500.0,0.00016999,2]
[394948631,1764189033110,-500.0,0.00016999,2]
[394948632,1764189033119,-500.0,0.00016999,2]
[394948633,1764189033128,-650.0,0.00016999,2]
[394948634,1764189033142,-431.83806392,0.00016999,2]
[394948635,1764189033151,-250.0,0.00017,2]
[394948636,1764189033160,-1304.73901034,0.00017,2]
[394948637,1764189033174,-970.58787106,0.00017,2]
[394948638,1764189033185,-916.31350998,0.00017,2]
[394948639,1764189033197,-1585.10498767,0.00017,2]
[394948643,1764189037428,-328.59908711,0.00016899,2]
[394948644,1764189037438,-490.74324247,0.00017,2]
[394948645,1764189037449,-995.02582332,0.00017,2]
[394948646,1764189037460,-272.72746027,0.00017,2]
[394948647,1764189037594,-1119.5,0.00017,2]
[394948661,1764189039592,-306.75516906,0.00017,2]
[394948662,1764189039604,-86166.00000003,0.00017,2]
[394948670,1764189039702,-1297.56,0.00017,2]
[394948672,1764189039714,-4335.12543046,0.00017,2]
[394948674,1764189039726,-22802.92459112,0.00017,2]
[394948675,1764189039757,-46327.0624297,0.00017,2]
[394948676,1764189039769,-534.89075928,0.00017,2]
[394948677,1764189039816,-7765.01788975,0.00017,2]
[394948678,1764189039833,-81612.762,0.00017,2]
[394948679,1764189039929,-10790.29324873,0.00017,2]
[394948704,1764189043108,-785.0,0.00017,2]
[394948705,1764189043911,-5546.91343113,0.00017,2]
[394948712,1764189045553,-770.06791558,0.00017,2]
[394948713,1764189045565,-457.8,0.00017,2]
[394948714,1764189045773,-4073.64213856,0.00017,2]
[394948715,1764189045784,-12040.04440058,0.00017,2]
[394948716,1764189045795,-145236.78730883,0.00017,2]
[394948717,1764189045809,-401.10288006,0.00017,2]
[394948719,1764189045835,-368669.28288707,0.00017,2]
[394948721,1764189045848,-109365.39870215,0.00017,2]
[394948727,1764189375158,-500.0,0.00032877,120]
[394948728,1764189375182,-169.0,0.000329,120]
[394948729,1764189416676,-520.0,0.00033014,120]
[394948730,1764189460311,-151.0,0.00035616,31]
[394948731,1764189460334,-160.656964,0.00035616,31]
[394948732,1764189460358,-177.584794,0.00035616,31]
[394948733,1764189460386,-151.0,0.00035616,31]
[394948734,1764189460408,-151.0,0.00035616,31]
[394948735,1764189460432,-151.0,0.00035616,31]
[394948736,1764189460455,-151.0,0.00035616,31]
[394948737,1764189460477,-156.297904,0.00035616,31]
[394948738,1764189460500,-164.370849,0.00035616,31]
[394948739,1764189460525,-151.0,0.00035616,31]
[394948740,1764189460548,-151.0,0.00035616,31]
[394948741,1764189460571,-151.0,0.00035616,31]
[394948742,1764189460593,-151.0,0.00035616,31]
[394948743,1764189460622,-93.089489,0.00035616,31]
[394948744,1764189618348,-166.66,0.00015363,2]
[394948745,1764189618373,-250.0,0.00015444,2]
[394948746,1764189618396,-340.47068492,0.00015524,2]
[394948747,1764189618421,-166.66,0.00015686,2]
[394948748,1764189618450,-887.72604781,0.00015738,2]
[394948750,1764189620917,-168.08758059,0.00015738,2]
[394948751,1764189623219,-759.152318,0.00015738,2]
[394948760,1764189722976,165.9,0.00012636,2]
[394948774,1764190150131,-150.0,0.00015288,2]
[394948775,1764190150152,-759.152318,0.00015659,2]
[394948776,1764190150172,-212.3740536,0.00015738,2]
[394948777,1764190150193,-200.0,0.00015852,2]
[394948778,1764190150213,-1292.2,0.00015908,2]
[394948779,1764190150234,-166.66,0.0001601,2]
[394948780,1764190150255,-1200.0,0.00016091,2]
[394948781,1764190150276,-300.0,0.00016091,2]
[394948782,1764190150296,-842.18045428,0.00016092,2]
[394948791,1764190231641,-300.0,0.00015761,2]
[394948793,1764190231651,-25.3308582,0.00015761,2]
[394948795,1764190231662,-274.6691418,0.00015761,2]
[394948797,1764190231671,-95.3308582,0.00015761,2]
[394948798,1764190231682,-1094.8712413,0.00015761,2]
[394948799,1764190231696,-9.7979005,0.00015761,2]
[394948800,1764190231706,-2496.61785819,0.00015762,2]
[394948801,1764190231754,-5000.00903548,0.00015762,2]
[394948802,1764190231811,-405.14652792,0.00015762,2]
[394948807,1764190237611,-3566.39657841,0.00015762,2]
[394948808,1764190237621,-362.52238698,0.00016019,2]
[394948809,1764190237630,-9982.66954572,0.00016092,2]
[394948810,1764190237640,-1617.56781245,0.00016119,2]
[394948811,1764190237648,-500.0,0.0001612,2]
[394948812,1764190237658,-362.52238698,0.00016145,2]
[394948813,1764190237667,-362.52238698,0.00016271,2]